lending/lending_fUSD_20250501
["ID","MTS","AMOUNT","RATE_DAILY","PERIOD"]
[359511845,1746082240658,-5679.00695051,0.00030383,22]
[359511846,1746082240667,-785.7,0.00030407,2]
[359511848,1746082240676,-13389.73962372,0.00030456,30]
[359511850,1746082240686,-1345.0,0.00030615,2]
[359511852,1746082240695,-150.0,0.0003093,2]
[359511854,1746082240704,-600.0,0.00031,2]
[359511857,1746082240714,-5679.00695051,0.00031245,24]
[359511858,1746082240723,-313.29156098,0.000314,30]
[359511860,1746082240732,-194.97,0.0003145,2]
[359511862,1746082240741,-237.217446,0.00031492,2]
[359511865,1746082240751,-500.0,0.00031499,10]
[359511867,1746082240760,-181.17,0.00031506,2]
[359511869,1746082240770,-6294.16,0.00031507,2]
[359511870,1746082240779,-1000.0,0.00031517,2]
[359511871,1746082240788,-150.0,0.00031723,2]
[359511872,1746082240797,-237.217446,0.00031886,2]
[359511873,1746082240807,-1533.56696301,0.00032,2]
[359511874,1746082240955,-154.083,0.00032082,2]
[359511875,1746082240965,-1340.0,0.00032082,2]
[359511876,1746082240976,-1028.932,0.00032082,2]
[359511877,1746082240985,-1299.805,0.00032082,2]
[359511878,1746082240994,-797.0,0.00032082,2]
[359511879,1746082241005,-2125.147,0.00032082,2]
[359511880,1746082241017,-1053.242,0.00032082,2]
[359511881,1746082241027,-630.791,0.00032082,2]
[359511882,1746082241036,-596.257,0.00032082,2]
[359511883,1746082241045,-1492.729,0.00032082,2]
[359511884,1746082241054,-885.477,0.00032082,2]
[359511885,1746082241063,-201.076,0.00032082,2]
[359511886,1746082241074,-264.778,0.00032082,2]
[359511887,1746082241083,-4003.0,0.00032082,2]
[359511888,1746082241093,-878.0,0.00032082,2]
[359511889,1746082241102,-6750.0,0.00032082,2]
[359511890,1746082241112,-5679.00695051,0.00032107,26]
[359511891,1746082241121,-237.217446,0.00032279,2]
[359511892,1746082241130,-200.0,0.0003228,2]
[359511893,1746082241140,-14705.0,0.000325,5]
[359511894,1746082241149,-150.0,0.00032516,2]
[359511895,1746082241158,-785.7,0.00032671,2]
[359511896,1746082241168,-237.217446,0.00032673,2]
[359511897,1746082241176,-215.0,0.0003268,2]
[359511898,1746082241185,-4658.27428866,0.000328,2]
[359511899,1746082241193,-181.17,0.00032876,2]
[359511900,1746082241202,-500.0,0.00032877,5]
[359511901,1746082241211,-477.0,0.00032877,2]
[359511902,1746082241220,-6294.16,0.00032877,2]
[359511903,1746082241230,-176.59,0.00032877,30]
[359511904,1746082241239,-331.98,0.00032877,2]
[359511905,1746082241249,-175.0,0.00032877,2]
[359511906,1746082241258,-231.0,0.00032877,2]
[359511907,1746082241267,-396.16628054,0.00032877,2]
[359511908,1746082241276,-200.0,0.00032877,2]
[359511909,1746082241286,-600.0,0.000329,2]
[359511910,1746082241295,-204.10556556,0.0003293,30]
[359511911,1746082241304,-5679.00695051,0.00032969,28]
[359511912,1746082241313,-265.667414,0.00032979,2]
[359511913,1746082241322,-4561.98759854,0.00033,2]
[359511914,1746082241331,-650.0,0.00033,2]
[359511915,1746082241340,-213.0,0.00033,2]
[359511916,1746082241349,-237.217446,0.00033067,2]
[359511917,1746082241359,-216.8187967,0.000331,2]
[359511918,1746082241368,-1000.0,0.00033165,2]
[359511919,1746082241377,-200.0,0.00033206,2]
[359511920,1746082241386,-150.0,0.00033309,2]
[359511921,1746082241396,-1170.33504023,0.000335,2]
[359511922,1746082241406,-200.0,0.00033538,2]
[359511923,1746082241416,-3017.08,0.000336,7]
[359511924,1746082241425,-5679.00695051,0.00033831,29]
[359511925,1746082241435,-215.0,0.0003385,2]
[359511926,1746082241444,-200.0,0.00033873,2]
[359511927,1746082241453,-2033.18940034,0.00034,2]
[359511928,1746082241463,-155.65,0.00034,2]
[359511929,1746082241472,-155.65,0.00034,2]
[359511930,1746082241481,-155.65,0.00034,2]
[359511931,1746082241490,-155.65,0.00034,2]
[359511932,1746082241501,-155.65,0.00034,2]
[359511933,1746082241510,-155.65,0.00034,2]
[359511934,1746082241519,-155.65,0.00034,2]
[359511935,1746082241529,-155.65,0.00034,2]
[359511936,1746082241538,-150.0,0.00034102,2]
[359511937,1746082241548,-522.64809645,0.000342,2]
[359511938,1746082241557,-200.0,0.00034212,2]
[359511939,1746082241566,-181.17,0.00034246,2]
[359511940,1746082241575,-150.0,0.00034548,10]
[359511941,1746082241584,-5679.00695051,0.00034693,31]
[359511942,1746082241594,-401.17,0.000348,31]
[359511943,1746082241603,-401.17,0.000348,31]
[359511944,1746082241612,-401.17,0.000348,31]
[359511945,1746082241621,-401.17,0.000348,31]
[359511946,1746082241631,-401.17,0.000348,31]
[359511947,1746082241640,-401.17,0.000348,31]
[359511948,1746082241650,-401.17,0.000348,31]
[359511949,1746082241661,-401.17,0.000348,31]
[359511950,1746082241671,-401.17,0.000348,31]
[359511951,1746082241680,-401.17,0.000348,31]
[359511952,1746082241689,-401.17,0.000348,31]
[359511953,1746082241699,-401.17,0.000348,31]
[359511954,1746082241708,-150.0,0.00034895,2]
[359511955,1746082241717,-785.7,0.00034935,2]
[359511956,1746082241727,-42326.55731167,0.0003498,2]
[359511957,1746082241736,-155.894,0.00034995,2]
[359511958,1746082241745,-323.27492623,0.00034999,10]
[359511959,1746082241755,-500.0,0.00034999,10]
[359511960,1746082241764,-132271.92933389,0.00035,2]
[359511961,1746082241773,-228.03168548,0.00035,2]
[359511962,1746082241783,-558.45262932,0.00035,30]
[359511963,1746082241792,-700.0,0.00035,2]
[359511964,1746082241802,-5000.0,0.00035,14]
[359511965,1746082241812,-5000.0,0.00035,10]
[359511966,1746082241821,-10000.0,0.00035,2]
[359511967,1746082241831,-215.0,0.0003503,2]
[359511968,1746082241840,-1063.47,0.00035068,2]
[359511969,1746082241849,-150.0,0.00035078,30]
[359511970,1746082241859,-244.98668706,0.00035078,30]
[359511971,1746082241868,-1340.0,0.00035082,2]
[359511972,1746082241878,-923.0,0.00035082,2]
[359511973,1746082241887,-1289.0,0.00035082,2]
[359511974,1746082241897,-797.0,0.00035082,2]
[359511975,1746082241906,-2070.0,0.00035082,2]
[359511976,1746082241916,-913.0,0.00035082,2]
[359511977,1746082241926,-549.0,0.00035082,2]
[359511978,1746082241935,-580.0,0.00035082,2]
[359511979,1746082241946,-1449.0,0.00035082,2]
[359511980,1746082241956,-876.0,0.00035082,2]
[359511981,1746082241965,-153.0,0.00035082,2]
[359511982,1746082241978,-153.0,0.00035082,2]
[359511983,1746082241988,-4003.0,0.00035082,2]
[359511984,1746082241997,-878.0,0.00035082,2]
[359511985,1746082242006,-6750.0,0.00035082,2]
[359511986,1746082242019,-944.81641743,0.000355,4]
[359511987,1746082242029,-5679.00695051,0.00035555,33]
[359511988,1746082242039,-181.17,0.00035616,2]
[359511989,1746082242050,-151.0,0.00035616,2]
[359511990,1746082242059,-150.0,0.00035688,2]
[359511991,1746082242069,-243.0,0.000357,48]
[359511992,1746082242080,-589.0,0.00035879,5]
[359511993,1746082242092,-33833.20755427,0.0003593,7]
[359511994,1746082242103,-156.26157836,0.0003599,2]
[359511995,1746082242113,-155.65,0.0003599,2]
[359511996,1746082242122,-500.0,0.00035999,10]
[359511997,1746082242131,-183061.3038097,0.00036,2]
[359511998,1746082242141,-201.0,0.00036,30]
[359511999,1746082242151,-10319.80535879,0.00036,14]
[359512000,1746082242161,-414941.97254504,0.00036,15]
[359512001,1746082242170,-6043.4123399,0.00036,2]
[359512002,1746082242179,-151.0,0.00036,7]
[359512003,1746082242188,-153.00613,0.00036,7]
[359512004,1746082242198,-151.0,0.00036,7]
[359512005,1746082242207,-151.0,0.00036,7]
[359512006,1746082242218,-151.0,0.00036,7]
[359512007,1746082242227,-151.0,0.00036,7]
[359512008,1746082242237,-181.839761,0.00036,7]
[359512009,1746082242247,-151.0,0.00036,7]
[359512010,1746082242257,-151.0,0.00036,7]
[359512011,1746082242267,-553.064693,0.00036,7]
[359512012,1746082242277,-553.064693,0.00036,7]
[359512013,1746082242286,-151.0,0.00036,7]
[359512014,1746082242296,-502.714282,0.00036,7]
[359512015,1746082242305,-502.714282,0.00036,7]
[359512016,1746082242315,-151.0,0.00036,7]
[359512017,1746082242324,-2698.719256,0.00036,7]
[359512018,1746082242333,-2698.719256,0.00036,7]
[359512019,1746082242342,-151.0,0.00036,7]
[359512020,1746082242352,-151.0,0.00036,7]
[359512021,1746082242362,-151.0,0.00036,7]
[359512022,1746082242371,-151.0,0.00036,7]
[359512023,1746082242380,-358.496672,0.00036,7]
[359512024,1746082242389,-358.496672,0.00036,7]
[359512025,1746082242399,-151.0,0.00036,7]
[359512026,1746082242407,-151.0,0.00036,7]
[359512027,1746082242417,-151.0,0.00036,7]
[359512028,1746082242426,-151.0,0.00036,7]
[359512029,1746082242435,-275.675757,0.00036,7]
[359512030,1746082242444,-275.675757,0.00036,7]
[359512031,1746082242453,-155.347705,0.00036,7]
[359512032,1746082242462,-151.0,0.00036,7]
[359512033,1746082242471,-213.0,0.00036,2]
[359512034,1746082242480,-215.0,0.000362,2]
[359512035,1746082242489,-5679.00695051,0.00036417,34]
[359512036,1746082242499,-150.0,0.00036482,2]
[359512037,1746082242509,-152.0,0.00036674,3]
[359512038,1746082242518,-160.0,0.000367,51]
[359512039,1746082242527,-250.0,0.000367,7]
[359512040,1746082242537,-1445.67524281,0.000369,30]
[359512041,1746082242546,-884.42612705,0.00036986,60]
[359512042,1746082242556,-181.17,0.00036986,2]
[359512043,1746082242566,-750.0,0.00037,2]
[359512044,1746082242575,-785.7,0.00037199,2]
[359512045,1746082242585,-246.41118833,0.000372,120]
[359512046,1746082242594,-246.41118831,0.000372,120]
[359512047,1746082242603,-246.41118831,0.000372,120]
[359512048,1746082242614,-265.667414,0.00037202,2]
[359512049,1746082242623,-168.611437,0.00037252,2]
[359512050,1746082242632,-150.0,0.00037275,2]
[359512051,1746082242642,-5679.00695051,0.00037279,36]
[359512052,1746082242651,-246.41118831,0.00037306,120]
[359512053,1746082242660,-215.0,0.0003737,2]
[359512054,1746082242670,-2641.87977231,0.0003749,2]
[359512055,1746082242679,-236.0,0.000375,2]
[359512056,1746082242688,-374.0,0.000375,2]
[359512057,1746082242698,-401.17,0.000375,31]
[359512058,1746082242707,-401.17,0.000375,31]
[359512059,1746082242717,-401.17,0.000375,31]
[359512060,1746082242726,-401.17,0.000375,31]
[359512061,1746082242736,-401.17,0.000375,31]
[359512062,1746082242745,-401.17,0.000375,31]
[359512063,1746082242758,-401.17,0.000375,31]
[359512064,1746082242768,-401.17,0.000375,31]
[359512065,1746082242777,-401.17,0.000375,31]
[359512066,1746082242787,-401.17,0.000375,31]
[359512067,1746082242797,-401.17,0.000375,31]
[359512068,1746082242806,-401.17,0.000375,31]
[359512069,1746082242816,-401.17,0.000375,31]
[359512070,1746082242826,-401.17,0.000375,31]
[359512071,1746082242835,-401.17,0.000375,31]
[359512072,1746082242845,-401.17,0.000375,31]
[359512073,1746082242856,-401.17,0.000375,31]
[359512074,1746082242867,-401.17,0.000375,31]
[359512075,1746082242878,-401.17,0.000375,31]
[359512076,1746082242889,-401.17,0.000375,31]
[359512077,1746082242899,-401.17,0.000375,31]
[359512078,1746082242910,-401.17,0.000375,31]
[359512079,1746082242920,-401.17,0.000375,31]
[359512080,1746082242931,-401.17,0.000375,31]
[359512081,1746082242942,-764.0,0.000375,2]
[359512082,1746082242952,-4210.05006415,0.0003759,2]
[359512083,1746082242962,-3975.40454564,0.00037644,7]
[359512084,1746082242972,-160.0,0.000377,54]
[359512085,1746082242982,-168.60832689,0.000378,2]
[359512086,1746082242992,-1004.28127503,0.000378,2]
[359512087,1746082243003,-664.50740952,0.0003781,5]
[359512088,1746082243017,-645.9418004,0.00037907,5]
[359512089,1746082243027,-500.0,0.00037999,10]
[359512090,1746082243037,-122487.70293225,0.00038,5]
[359512091,1746082243046,-2013.66,0.00038,120]
[359512092,1746082243056,-172414.08187874,0.00038,7]
[359512093,1746082243066,-7031.76322372,0.00038,2]
[359512094,1746082243075,-501.03936166,0.00038,30]
[359512095,1746082243085,-500.0,0.00038,2]
[359512096,1746082243096,-306.0,0.00038,2]
[359512097,1746082243107,-5000.0,0.00038,10]
[359512098,1746082243116,-503.55822071,0.00038054,5]
[359512099,1746082243125,-150.0,0.00038068,2]
[359512100,1746082243135,-500.0,0.0003807,2]
[359512101,1746082243144,-700.0,0.0003807,2]
[359512102,1746082243154,-501.24300274,0.00038075,5]
[359512103,1746082243163,-965.65758984,0.00038075,5]
[359512104,1746082243172,-1500.0,0.00038075,5]
[359512105,1746082243182,-1340.0,0.00038082,2]
[359512106,1746082243191,-923.0,0.00038082,2]
[359512107,1746082243200,-1289.0,0.00038082,2]
[359512108,1746082243210,-797.0,0.00038082,2]
[359512109,1746082243220,-2070.0,0.00038082,2]
[359512110,1746082243231,-913.0,0.00038082,2]
[359512111,1746082243240,-549.0,0.00038082,2]
[359512112,1746082243252,-580.0,0.00038082,2]
[359512113,1746082243261,-1449.0,0.00038082,2]
[359512114,1746082243271,-876.0,0.00038082,2]
[359512115,1746082243415,-153.0,0.00038082,2]
[359512116,1746082243425,-4003.0,0.00038082,2]
[359512117,1746082243437,-878.0,0.00038082,2]
[359512118,1746082243446,-6750.0,0.00038082,2]
[359512119,1746082243456,-883.91875587,0.00038141,2]
[359512120,1746082243465,-5679.00695051,0.00038141,38]
[359512121,1746082243475,-12500.0,0.00038151,5]
[359512122,1746082243484,-12500.0,0.0003816,5]
[359512123,1746082243493,-12500.0,0.00038168,5]
[359512124,1746082243503,-12500.0,0.00038177,5]
[359512125,1746082243512,-12500.0,0.00038186,5]
[359512126,1746082243522,-12500.0,0.00038195,5]
[359512127,1746082243531,-12500.0,0.00038204,5]
[359512128,1746082243540,-12500.0,0.00038212,5]
[359512129,1746082243550,-12500.0,0.00038221,5]
[359512130,1746082243559,-12500.0,0.0003823,5]
[359512131,1746082243568,-12500.0,0.00038239,5]
[359512132,1746082243577,-12500.0,0.00038248,5]
[359512133,1746082243587,-12500.0,0.00038256,5]
[359512134,1746082243596,-12500.0,0.00038265,5]
[359512135,1746082243605,-12500.0,0.00038274,5]
[359512136,1746082243615,-1500.0,0.0003828,5]
[359512137,1746082243624,-2763.34317591,0.00038321,5]
[359512138,1746082243634,-181.17,0.00038356,2]
[359512139,1746082243643,-176.59,0.00038356,30]
[359512140,1746082243652,-215.5267442,0.00038356,2]
[359512141,1746082243662,-39380.62,0.000384,14]
[359512142,1746082243671,-5690.15,0.000384,14]
[359512143,1746082243680,-2000.0,0.000384,2]
[359512144,1746082243689,-152.0,0.00038475,4]
[359512145,1746082243698,-215.0,0.0003855,2]
[359512146,1746082243708,-207.0,0.0003855,30]
[359512147,1746082243718,-160.0,0.000387,57]
[359512148,1746082243727,-181.5,0.00038742,30]
[359512149,1746082243737,-160.72490937,0.0003879,2]
[359512150,1746082243746,-150.0,0.00038861,2]
[359512151,1746082243757,-1000.0,0.00038933,2]
[359512152,1746082243766,-1104.80592783,0.0003899,2]
[359512153,1746082243775,-800.0,0.00039,2]
[359512154,1746082243785,-5000.0,0.00039,14]
[359512155,1746082243795,-213.0,0.00039,2]
[359512156,1746082243804,-5679.00695051,0.00039003,39]
[359512157,1746082243813,-501.02381,0.00039232,5]
[359512158,1746082243824,-500.0,0.00039232,60]
[359512159,1746082243833,-500.0,0.00039232,60]
[359512160,1746082243844,-500.0,0.00039232,60]
[359512161,1746082243854,-500.0,0.00039232,60]
[359512162,1746082243863,-500.0,0.00039232,60]
[359512163,1746082243872,-613.0,0.00039232,60]
[359512164,1746082243881,-200.0,0.00039232,13]
[359512165,1746082243890,-200.0,0.00039232,13]
[359512166,1746082243900,-200.0,0.00039232,13]
[359512167,1746082243909,-346.0,0.00039232,13]
[359512168,1746082243919,-785.7,0.00039463,2]
[359512169,1746082243928,-150.0,0.00039654,2]
[359512170,1746082243938,-160.0,0.000397,60]
[359512171,1746082243948,-5690.15,0.000397,14]
[359512172,1746082243957,-215.0,0.0003972,2]
[359512173,1746082243966,-207.0,0.0003972,30]
[359512174,1746082243978,-181.17,0.00039726,2]
[359512175,1746082243988,-250.0,0.000398,7]
[359512176,1746082243997,-5679.00695051,0.00039866,41]
[359512177,1746082244008,-400.0,0.0003997,2]
[359512178,1746082244019,-700.0,0.0003997,2]
[359512179,1746082244030,-500.0,0.0003999,15]
[359512180,1746082244039,-500.0,0.0003999,15]
[359512181,1746082244052,-500.0,0.0003999,15]
[359512182,1746082244062,-500.0,0.0003999,15]
[359512183,1746082244071,-500.0,0.0003999,15]
[359512184,1746082244081,-500.0,0.0003999,15]
[359512185,1746082244097,-500.0,0.0003999,15]
[359512186,1746082244106,-500.0,0.0003999,15]
[359512187,1746082244118,-346.04541251,0.0004,30]
[359512188,1746082244127,-3556.82893042,0.0004,4]
[359512189,1746082244138,-399.25331377,0.0004,30]
[359512190,1746082244148,-10305.49890051,0.0004,30]
[359512191,1746082244158,-6703.48993507,0.0004,30]
[359512192,1746082244168,-78566.55328087,0.0004,30]
[359512193,1746082244177,-1000.0,0.0004,60]
[359512194,1746082244187,-157.6,0.0004,30]
[359512195,1746082244199,-157.6,0.0004,30]
[359512196,1746082244209,-2503.0598691,0.0004,30]
[359512197,1746082244218,-1000.0,0.00040049,7]
[359512199,1746082244227,-35149.97,0.000401,2]
[359512200,1746082244237,-1000.0,0.00040186,7]
[359512202,1746082244246,-1265.9829967,0.0004026,4]
[359512203,1746082244257,-152.0,0.00040277,5]
[359512204,1746082244267,-401.17,0.000403,31]
[359512205,1746082244277,-401.17,0.000403,31]
[359512206,1746082244286,-401.17,0.000403,31]
[359512207,1746082244296,-401.17,0.000403,31]
[359512208,1746082244305,-401.17,0.000403,31]
[359512209,1746082244315,-401.17,0.000403,31]
[359512210,1746082244325,-401.17,0.000403,31]
[359512211,1746082244334,-401.17,0.000403,31]
[359512213,1746082244344,-401.17,0.000403,31]
[359512215,1746082244353,-401.17,0.000403,31]
[359512217,1746082244363,-401.17,0.000403,31]
[359512219,1746082244372,-401.17,0.000403,31]
[359512220,1746082244382,-401.17,0.000403,31]
[359512221,1746082244391,-401.17,0.000403,31]
[359512222,1746082244401,-401.17,0.000403,31]
[359512223,1746082244410,-401.17,0.000403,31]
[359512224,1746082244419,-401.17,0.000403,31]
[359512225,1746082244428,-401.17,0.000403,31]
[359512226,1746082244437,-401.17,0.000403,31]
[359512227,1746082244447,-401.17,0.000403,31]
[359512229,1746082244456,-401.17,0.000403,31]
[359512230,1746082244465,-401.17,0.000403,31]
[359512231,1746082244475,-401.17,0.000403,31]
[359512232,1746082244484,-401.17,0.000403,31]
[359512233,1746082244494,-150.0,0.00040447,2]
[359512234,1746082244504,-1248.07,0.00040502,5]
[359512235,1746082244514,-707.81085017,0.00040502,5]
[359512236,1746082244524,-35149.97,0.000406,2]
[359512237,1746082244534,-1333.0,0.00040658,120]
[359512238,1746082244544,-39380.62,0.000407,14]
[359512239,1746082244553,-160.0,0.000407,63]
[359512240,1746082244563,-5679.00695051,0.00040728,43]
[359512241,1746082244572,-4997.15801357,0.000408,60]
[359512242,1746082244582,-5690.15,0.000408,14]
[359512243,1746082244591,-998.1087,0.00040888,7]
[359512244,1746082244602,-215.0,0.000409,2]
[359512245,1746082244611,-207.0,0.000409,30]
[359512246,1746082244621,-5800.0,0.00040999,14]
[359512247,1746082244630,-152.97203691,0.00041,2]
[359512248,1746082244639,-10000.0,0.00041,30]
[359512249,1746082244649,-850.0,0.00041,2]
[359512250,1746082244658,-5000.0,0.00041,10]
[359512251,1746082244667,-1248.16,0.00041005,5]
[359512252,1746082244677,-1268.25,0.00041025,5]
[359512253,1746082244686,-1273.07,0.00041025,5]
[359512254,1746082244695,-150.0,0.00041035,7]
[359512255,1746082244706,-212.33,0.0004107,120]
[359512256,1746082244715,-150.5,0.0004107,120]
[359512257,1746082244725,-150.5,0.0004107,120]
[359512258,1746082244734,-150.5,0.0004108,120]
[359512259,1746082244744,-150.5,0.0004108,120]
[359512260,1746082244753,-150.5,0.0004108,120]
[359512261,1746082244763,-1237.792,0.00041082,2]
[359512264,1746082244773,-923.0,0.00041082,2]
[359512265,1746082244782,-1289.0,0.00041082,2]
[359512266,1746082244793,-797.0,0.00041082,2]
[359512267,1746082244802,-580.0,0.00041082,2]
[359512268,1746082244813,-876.0,0.00041082,2]
[359512269,1746082244825,-153.0,0.00041082,2]
[359512270,1746082244835,-4003.0,0.00041082,2]
[359512271,1746082244845,-878.0,0.00041082,2]
[359512272,1746082244855,-2183.378,0.00041082,2]
[359512273,1746082244864,-150.5,0.0004109,120]
[359512274,1746082244874,-150.5,0.0004109,120]
[359512275,1746082244883,-150.5,0.0004109,120]
[359512276,1746082244893,-299.43261,0.00041095,30]
[359512277,1746082244904,-181.17,0.00041095,120]
[359512278,1746082244913,-254.31900115,0.00041095,120]
[359512279,1746082244922,-200.0,0.00041096,10]
[359512280,1746082244932,-500.0,0.00041096,30]
[359512281,1746082244941,-500.0,0.00041096,30]
[359512282,1746082244950,-500.0,0.00041096,30]
[359512283,1746082244960,-500.0,0.00041096,30]
[359512284,1746082244969,-500.0,0.00041096,30]
[359512285,1746082244980,-500.0,0.00041096,30]
[359512286,1746082244990,-500.0,0.00041096,30]
[359512287,1746082245000,-154.0,0.00041096,30]
[359512288,1746082245013,-250.0,0.00041096,30]
[359512289,1746082245025,-35149.97,0.000411,2]
[359512290,1746082245035,-173.84707053,0.000411,120]
[359512291,1746082245044,-173.84707053,0.000411,120]
[359512292,1746082245055,-173.84707053,0.000411,120]
[359512293,1746082245065,-173.84707053,0.000411,120]
[359512294,1746082245074,-173.84707053,0.000411,120]
[359512295,1746082245083,-173.84,0.000411,120]
[359512296,1746082245093,-152.11618671,0.000411,120]
[359512297,1746082245104,-152.11618671,0.000411,120]
[359512298,1746082245116,-152.11618671,0.000411,120]
[359512299,1746082245127,-152.11618671,0.000411,120]
[359512300,1746082245137,-152.11618671,0.000411,120]
[359512301,1746082245147,-152.11618671,0.000411,120]
[359512302,1746082245156,-152.11618671,0.000411,120]
[359512303,1746082245165,-152.11618671,0.000411,120]
[359512304,1746082245175,-152.11618671,0.000411,120]
[359512305,1746082245184,-152.11618671,0.000411,120]
[359512306,1746082245193,-152.11618671,0.000411,120]
[359512307,1746082245202,-152.11618671,0.000411,120]
[359512308,1746082245211,-152.11618671,0.000411,120]
[359512309,1746082245221,-152.11618671,0.000411,120]
[359512310,1746082245230,-152.11618671,0.000411,120]
[359512311,1746082245240,-152.11,0.000411,120]
[359512312,1746082245249,-164.53574376,0.000411,120]
[359512313,1746082245260,-164.53574376,0.000411,120]
[359512314,1746082245269,-164.53574376,0.000411,120]
[359512315,1746082245279,-164.53574376,0.000411,120]
[359512316,1746082245288,-164.53,0.000411,120]
[359512317,1746082245298,-159.96530643,0.000411,120]
[359512318,1746082245307,-159.96530643,0.000411,120]
[359512319,1746082245317,-159.96530643,0.000411,120]
[359512320,1746082245327,-159.96530643,0.000411,120]
[359512321,1746082245336,-159.96530643,0.000411,120]
[359512322,1746082245347,-159.96530643,0.000411,120]
[359512323,1746082245357,-159.96530643,0.000411,120]
[359512324,1746082245366,-159.96530643,0.000411,120]
[359512325,1746082245376,-159.96530643,0.000411,120]
[359512326,1746082245386,-159.96530643,0.000411,120]
[359512327,1746082245395,-159.96530643,0.000411,120]
[359512328,1746082245405,-159.96,0.000411,120]
[359512329,1746082245414,-2000.0,0.000411,2]
[359512330,1746082245425,-218.97,0.000411,120]
[359512331,1746082245434,-170.3147408,0.000411,120]
[359512332,1746082245443,-150.0,0.00041178,30]
[359512333,1746082245452,-150.0,0.0004124,2]
[359512334,1746082245462,-299.43261,0.00041295,30]
[359512335,1746082245471,-151.0,0.00041299,5]
[359512336,1746082245480,-151.0,0.00041299,5]
[359512337,1746082245490,-193.73484558,0.00041299,5]
[359512338,1746082245499,-150.0,0.0004132,30]
[359512339,1746082245510,-400.0,0.0004137,3]
[359512340,1746082245519,-400.0,0.0004137,3]
[359512341,1746082245529,-700.0,0.0004137,3]
[359512342,1746082245538,-700.0,0.0004137,3]
[359512343,1746082245548,-265.667414,0.00041425,3]
[359512344,1746082245557,-150.0,0.00041463,30]
[359512345,1746082245566,-18378.0,0.00041489,10]
[359512346,1746082245576,-299.43261,0.00041495,30]
[359512347,1746082245713,-5679.00695051,0.0004159,44]
[359512348,1746082245723,-1002.37253846,0.00041605,14]
[359512349,1746082245732,-150.0,0.00041605,30]
[359512350,1746082245742,-299.43261,0.00041695,30]
[359512351,1746082245751,-160.0,0.000417,66]
[359512352,1746082245762,-1021.46877761,0.000417,120]
[359512353,1746082245772,-785.7,0.00041727,2]
[359512354,1746082245782,-150.0,0.00041748,30]
[359512355,1746082245791,-500.0,0.00041759,60]
[359512356,1746082245802,-500.0,0.00041759,60]
[359512357,1746082245811,-35149.97,0.000418,2]
[359512358,1746082245822,-5690.15,0.000418,14]
[359512359,1746082245831,-151.0,0.000418,14]
[359512360,1746082245840,-151.0,0.000418,14]
[359512361,1746082245850,-500.0,0.000418,10]
[359512362,1746082245860,-151.0,0.000418,14]
[359512363,1746082245869,-166.66,0.00041871,2]
[359512364,1746082245879,-150.0,0.0004189,30]
[359512365,1746082245888,-299.43261,0.00041895,30]